bitfinex/quotes_SOLUSD_20250601
["timestamp","ask_amount","ask_price","bid_price","bid_amount"]
[1748802261931,6.43163248,155.49,155.42,19.79949762]
[1748802262135,19.79949762,155.48,155.43,19.79949762]
[1748802262461,32.43097929,155.5,155.43,19.79949762]
[1748802262646,26.0,155.5,155.45,19.79949762]
[1748802262851,45.79949762,155.5,155.45,19.79949762]
[1748802263541,45.79949762,155.5,155.46,26.23202031]
[1748802264242,45.79949762,155.5,155.46,6.43252269]
[1748802264860,19.79949762,155.48,155.44,19.79949762]
[1748802265357,19.79949762,155.49,155.44,19.79949762]
[1748802266347,26.23094257,155.49,155.44,19.79949762]
[1748802266759,26.23094257,155.49,155.44,26.2326678]
[1748802267064,19.79949762,155.49,155.44,26.2326678]
[1748802267261,26.23078812,155.49,155.44,6.43317018]
[1748802267468,26.23078812,155.49,155.44,19.79949762]
[1748802268057,19.79949762,155.48,155.44,26.23256238]
[1748802268564,19.79949762,155.49,155.44,19.79949762]
[1748802270069,26.23093503,155.49,155.44,19.79949762]
[1748802273268,26.23093503,155.49,155.44,26.2328003]
[1748802275249,26.23093503,155.49,155.44,19.79949762]
[1748802275463,26.23093503,155.49,155.43,12.73760836]
[1748802275660,26.23093503,155.49,155.44,19.79949762]
[1748802278571,19.79949762,155.48,155.43,6.43350836]
[1748802278775,19.79949762,155.48,155.43,26.23300598]
[1748802278986,19.79949762,155.47,155.43,19.79949762]
[1748802279177,19.79949762,155.45,155.41,11.98]
[1748802280581,26.23248545,155.45,155.41,11.98]
[1748802280787,26.23248545,155.45,155.37,18.64964886]
[1748802280788,19.79949762,155.42,155.37,19.79949762]
[1748802281089,19.79949762,155.42,155.38,19.79949762]
[1748802281986,19.79949762,155.43,155.39,6.43542055]
[1748802282584,19.79949762,155.42,155.38,26.2351916]
[1748802283362,19.79949762,155.42,155.38,6.43569398]
[1748802283565,19.79949762,155.42,155.38,26.2351916]
[1748802285464,19.79949762,155.43,155.38,26.2351916]
[1748802285663,19.79949762,155.43,155.39,19.79949762]
[1748802286096,19.79949762,155.43,155.38,26.2351916]
[1748802286383,32.43362974,155.44,155.38,26.2351916]
[1748802286384,32.43362974,155.44,155.39,19.79949762]
[1748802286585,19.79949762,155.43,155.39,19.79949762]
[1748802286788,19.79949762,155.44,155.39,19.79949762]
[1748802287790,21.31029762,155.46,155.41,19.79949762]
[1748802287984,21.31029762,155.46,155.4,6.43500643]
[1748802287985,21.31029762,155.46,155.42,19.79949762]
[1748802288183,19.79949762,155.47,155.43,19.79949762]
[1748802289803,19.79949762,155.47,155.43,26.23311445]
[1748802294279,45.79949762,155.48,155.43,26.23311445]
[1748802295586,19.79949762,155.47,155.43,26.23311445]
[1748802303096,19.79949762,155.47,155.44,19.79949762]
[1748802303294,148.9,155.49,155.45,19.79949762]
[1748802303501,26.0,155.5,155.47,19.79949762]
[1748802303701,26.0,155.5,155.48,19.79949762]
[1748802303897,148.9,155.53,155.48,19.79949762]
[1748802304120,148.9,155.53,155.51,19.79949762]
[1748802304297,1.6488,155.54,155.5,19.79949762]
[1748802304699,1.6488,155.54,155.51,6.43045463]
[1748802305019,35.49912513,155.57,155.53,19.79949762]
[1748802305209,15.69962751,155.57,155.54,19.79949762]
[1748802305513,15.69962751,155.57,155.55,19.79949762]
[1748802305892,26.0,155.58,155.55,19.79949762]
[1748802306704,26.0,155.58,155.55,26.22829864]
[1748802307313,21.44829762,155.59,155.55,26.22829864]
[1748802307505,26.0,155.58,155.55,26.22829864]
[1748802307692,26.0,155.58,155.55,19.79949762]
[1748802308312,26.0,155.58,155.54,6.42909287]
[1748802308513,26.0,155.58,155.55,19.79949762]
[1748802309834,26.0,155.58,155.54,19.79949762]
[1748802310127,27.87554514,155.59,155.52,6.43004115]
[1748802310289,19.79949762,155.57,155.52,6.43004115]
[1748802310493,19.79949762,155.57,155.52,19.79949762]
[1748802310696,19.79949762,155.56,155.52,19.79949762]
[1748802310918,19.79949762,155.56,155.52,26.22939731]
[1748802311298,26.0,155.57,155.54,19.79949762]
[1748802312226,21.44829762,155.59,155.55,19.79949762]
[1748802312398,19.79949762,155.6,155.52,42.30450019]
[1748802312599,45.79949762,155.6,155.56,19.79949762]
[1748802313417,45.79949762,155.6,155.55,19.79949762]
[1748802313625,45.79949762,155.6,155.56,19.79949762]
[1748802314002,19.79949762,155.59,155.54,26.22867667]
[1748802314201,19.79949762,155.59,155.51,79.05634886]
[1748802314202,45.79949762,155.57,155.51,19.2667]
[1748802314401,19.79949762,155.54,155.51,11.5]
[1748802316619,19.79949762,155.54,155.51,17.93028033]
[1748802316827,19.79949762,155.55,155.51,37.72977795]
[1748802317020,19.79949762,155.56,155.52,19.79949762]
[1748802317232,19.79949762,155.56,155.53,19.79949762]
[1748802317233,26.0,155.56,155.53,19.79949762]
[1748802317533,21.42669762,155.57,155.53,26.22871847]
[1748802317909,19.79949762,155.57,155.53,26.22871847]
[1748802319017,19.79949762,155.57,155.51,11.5]
[1748802319018,19.79949762,155.56,155.52,19.79949762]
[1748802320123,0.5,155.55,155.52,26.22946329]
[1748802320632,19.79949762,155.56,155.52,26.22946329]
[1748802322614,19.79949762,155.57,155.53,19.79949762]
[1748802323128,26.0,155.58,155.55,19.79949762]
[1748802324408,26.0,155.58,155.56,6.42838776]
[1748802324822,19.79949762,155.59,155.56,6.42838776]
[1748802325023,19.79949762,155.59,155.55,26.22815641]
[1748802327232,45.79949762,155.6,155.55,26.22815641]
[1748802327813,45.79949762,155.6,155.56,19.79949762]
[1748802328319,26.0,155.6,155.56,19.79949762]
[1748802328629,26.0,155.6,155.57,19.79949762]
[1748802329335,148.9,155.62,155.58,19.79949762]
[1748802329523,19.79949762,155.62,155.58,19.79949762]
[1748802330230,26.22540745,155.62,155.58,19.79949762]
[1748802331039,19.79949762,155.61,155.57,26.22736345]
[1748802331541,19.79949762,155.59,155.53,7.6791]
[1748802331836,19.79949762,155.58,155.53,44.8786445]
[1748802332211,19.79949762,155.58,155.54,19.79949762]
[1748802333137,19.79949762,155.58,155.54,26.2286273]
[1748802334637,19.79949762,155.59,155.54,26.2286273]
[1748802334835,26.0,155.6,155.56,19.79949762]
[1748802335038,19.79949762,155.6,155.56,26.2276487]
[1748802335545,45.79949762,155.61,155.57,19.79949762]
[1748802337242,45.79949762,155.61,155.57,26.22738122]
[1748802338344,19.79949762,155.6,155.55,18.64964886]
[1748802338645,19.79949762,155.57,155.54,6.42921435]
[1748802339022,19.79949762,155.57,155.53,19.79949762]
[1748802339023,19.79949762,155.57,155.53,6.42958102]
[1748802339627,19.79949762,155.57,155.53,26.22907864]
[1748802339828,19.79949762,155.58,155.53,26.22907864]
[1748802340645,19.79949762,155.58,155.54,26.22854292]
[1748802341019,20.29949762,155.6,155.56,19.79949762]
[1748802341248,45.79949762,155.61,155.57,19.79949762]
[1748802342147,19.79949762,155.6,155.56,19.79949762]
[1748802342963,19.79949762,155.6,155.55,18.64964886]
[1748802342964,19.79949762,155.58,155.54,19.79949762]
[1748802343251,19.79949762,155.57,155.53,6.42949481]
[1748802344064,19.79949762,155.57,155.52,38.44914648]
[1748802344065,19.79949762,155.54,155.5,11.04]
[1748802344245,19.79949762,155.55,155.51,26.22986103]
[1748802348252,26.0,155.57,155.51,26.22986103]
[1748802348448,45.79949762,155.57,155.52,19.79949762]
[1748802348626,0.5,155.56,155.53,19.79949762]
[1748802349149,26.0,155.57,155.53,19.79949762]
[1748802349457,26.0,155.57,155.54,19.79949762]
[1748802350230,26.0,155.57,155.54,6.42891507]
[1748802350731,19.79949762,155.56,155.53,6.42947665]
[1748802350926,19.79949762,155.56,155.52,6.43001127]
[1748802351632,19.79949762,155.54,155.51,17.47037853]
[1748802351838,19.79949762,155.54,155.51,11.04]
[1748802352234,19.79949762,155.54,155.51,17.47038458]
[1748802353649,0.5,155.53,155.51,17.47038458]
[1748802354159,19.79949762,155.55,155.51,17.47038458]
[1748802354458,19.79949762,155.55,155.51,37.2698822]
[1748802355829,21.33759762,155.56,155.52,19.79949762]
[1748802356137,19.79949762,155.57,155.53,19.79949762]
[1748802356443,45.79949762,155.58,155.55,6.42880102]
[1748802356957,26.0,155.58,155.55,6.42880102]
[1748802358136,19.79949762,155.59,155.55,26.22829864]
[1748802358337,47.45909762,155.6,155.55,26.22829864]
[1748802358533,0.5,155.58,155.56,19.79949762]
[1748802358933,0.5,155.58,155.57,19.79949762]
[1748802359234,19.79949762,155.63,155.57,19.79949762]
[1748802359562,19.79949762,155.63,155.59,19.79949762]
[1748802359863,26.0,155.62,155.59,19.79949762]
[1748802360435,45.79949762,155.6,155.52,17.64959659]
[1748802360636,19.79949762,155.56,155.52,54.52364307]
[1748802360836,19.79949762,155.57,155.52,54.52364307]
[1748802361066,19.79949762,155.57,155.53,19.79949762]
[1748802361238,19.79949762,155.6,155.55,19.79949762]
[1748802361444,45.79949762,155.6,155.55,19.79949762]
[1748802361639,19.79949762,155.61,155.56,19.79949762]
[1748802361960,45.79949762,155.62,155.57,19.79949762]
[1748802362145,45.79949762,155.62,155.58,19.79949762]
[1748802362457,26.0,155.62,155.59,6.42714827]
[1748802362659,26.0,155.62,155.58,6.42745619]
[1748802362660,19.79949762,155.61,155.58,6.42745619]
[1748802364346,19.79949762,155.59,155.52,20.9]
[1748802364661,19.79949762,155.57,155.52,26.22953877]
[1748802366606,19.79949762,155.56,155.52,19.79949762]
[1748802366765,19.79949762,155.54,155.51,11.04]
[1748802366945,34.00396138,155.58,155.51,11.04]
[1748802367270,19.79949762,155.53,155.51,17.47041703]
[1748802367440,19.79949762,155.54,155.51,17.47041703]
[1748802367640,19.79949762,155.54,155.5,6.4307871]
[1748802367840,19.79949762,155.54,155.5,26.23028472]
[1748802368273,19.79949762,155.53,155.49,26.2306432]
[1748802368955,26.0,155.54,155.5,19.79949762]
[1748802369466,26.0,155.56,155.51,19.79949762]
[1748802369667,19.79949762,155.55,155.51,19.79949762]
[1748802369852,26.0,155.56,155.49,22.50934996]
[1748802369853,19.79949762,155.56,155.52,19.79949762]
[1748802370057,19.79949762,155.55,155.52,6.43004115]
[1748802371370,19.79949762,155.54,155.52,6.43004115]
[1748802371573,19.79949762,155.55,155.51,26.22995225]
[1748802374176,45.79949762,155.56,155.51,26.22995225]
[1748802374674,0.5,155.55,155.51,26.22995225]
[1748802375369,20.29949762,155.55,155.51,6.43045463]
[1748802375676,19.79949762,155.53,155.49,19.79949762]
[1748802375854,19.79949762,155.54,155.49,19.79949762]
[1748802376857,19.79949762,155.54,155.5,6.43086816]
[1748802379073,19.79949762,155.54,155.5,19.79949762]
[1748802380470,19.79949762,155.54,155.51,6.43045463]
[1748802381860,20.29949762,155.55,155.51,6.43045463]
[1748802383794,0.5,155.55,155.51,26.22995225]
[1748802384084,21.37589762,155.58,155.53,19.79949762]
[1748802384392,47.37589762,155.58,155.54,19.79949762]
[1748802385094,21.37589762,155.58,155.54,19.79949762]
[1748802385262,148.9,155.59,155.55,19.79949762]
[1748802385485,21.32719762,155.62,155.57,19.79949762]
[1748802385716,26.0,155.6,155.57,19.79949762]
[1748802385892,26.0,155.6,155.58,26.227059]
[1748802386099,21.32719762,155.62,155.58,6.42756138]
[1748802387523,21.32719762,155.62,155.58,26.227059]
[1748802387890,45.79949762,155.59,155.53,6.42962772]
[1748802388221,19.79949762,155.56,155.53,6.42962772]
[1748802388598,19.79949762,155.57,155.53,26.22912534]
[1748802388828,45.79949762,155.57,155.53,26.22912534]
[1748802389506,26.0,155.57,155.55,19.79949762]
[1748802389694,26.0,155.57,155.54,19.79949762]
[1748802390202,1.5277,155.62,155.55,6.42880102]
[1748802390404,19.79949762,155.57,155.51,6.43045463]
[1748802390732,19.79949762,155.57,155.53,19.79949762]
[1748802391024,26.0,155.59,155.53,19.79949762]
[1748802391192,26.0,155.59,155.54,19.79949762]
[1748802391390,19.79949762,155.58,155.54,19.79949762]
[1748802392184,19.79949762,155.58,155.53,19.79949762]
[1748802392390,45.79949762,155.58,155.54,6.42921435]
[1748802393102,19.79949762,155.57,155.54,6.42921435]
[1748802393318,0.5,155.57,155.54,6.42921435]
[1748802394017,0.5,155.57,155.54,26.22871197]
[1748802395213,0.5,155.57,155.54,6.42921435]
[1748802395520,20.29949762,155.57,155.54,6.42921435]
[1748802396309,19.79949762,155.55,155.5,6.43086816]
[1748802396506,19.79949762,155.53,155.5,6.43086816]
[1748802397340,19.79949762,155.54,155.5,6.43086816]
[1748802397530,19.79949762,155.55,155.5,42.30753619]
[1748802401301,19.79949762,155.51,155.49,17.29116252]
[1748802401508,26.5,155.54,155.47,6.43210908]
[1748802401509,19.79949762,155.5,155.47,6.43210908]
[1748802401704,19.79949762,155.51,155.47,6.43210908]
[1748802402403,19.79949762,155.51,155.47,26.2316067]
[1748802403020,19.79949762,155.51,155.47,6.43210908]
[1748802403810,19.79949762,155.51,155.47,26.2316067]
[1748802405412,19.79949762,155.51,155.46,22.51365473]
[1748802405623,19.79949762,155.51,155.47,19.79949762]
[1748802406524,19.79949762,155.51,155.46,22.51365473]
[1748802406700,0.5,155.51,155.47,19.79949762]
[1748802407331,19.79949762,155.52,155.47,19.79949762]
[1748802408434,19.79949762,155.52,155.48,6.43169539]
[1748802409227,19.79949762,155.51,155.42,48.4192]
[1748802409435,19.79949762,155.47,155.44,6.43335048]
[1748802410724,19.79949762,155.46,155.42,6.43417835]
[1748802411041,19.79949762,155.46,155.42,26.23367597]
[1748802413820,26.0,155.49,155.45,19.79949762]
[1748802414832,26.0,155.49,155.46,6.43252283]
[1748802415011,26.0,155.49,155.45,26.23228291]
[1748802415541,26.0,155.49,155.46,19.79949762]
[1748802416128,26.0,155.49,155.45,26.23228291]
[1748802416524,45.79949762,155.49,155.44,26.23274353]
[1748802417943,20.29949762,155.48,155.44,26.23274353]
[1748802418922,0.5,155.48,155.44,26.23274353]
[1748802420342,26.73120987,155.48,155.43,19.79949762]
[1748802420646,19.79949762,155.47,155.42,6.43417835]
[1748802420836,19.79949762,155.46,155.41,10.86]
[1748802421046,19.79949762,155.45,155.41,19.79949762]
[1748802421222,19.79949762,155.45,155.41,26.23407161]
[1748802422732,19.79949762,155.45,155.41,6.43457399]
[1748802423867,26.23215009,155.46,155.41,26.23407161]
[1748802424225,19.79949762,155.46,155.41,26.23407161]
[1748802424629,26.23212834,155.46,155.41,26.23407161]
[1748802425535,26.23212834,155.46,155.41,6.43457399]
[1748802425536,52.23212834,155.46,155.41,6.43457399]
[1748802425836,20.29949762,155.45,155.41,26.23407161]
[1748802427348,0.5,155.45,155.44,19.79949762]
[1748802427571,19.79949762,155.49,155.44,19.79949762]
[1748802427730,45.79949762,155.49,155.44,19.79949762]
[1748802427929,45.79949762,155.45,155.39,13.00364962]
[1748802428127,19.79949762,155.41,155.36,18.64964886]
[1748802428332,1.5249,155.44,155.36,18.64964886]
[1748802428333,19.79949762,155.4,155.36,19.79949762]
[1748802428539,19.79949762,155.4,155.36,26.23616085]
[1748802429445,19.79949762,155.39,155.34,37.09688164]
[1748802429751,19.79949762,155.38,155.34,17.29738402]
[1748802430235,19.79949762,155.38,155.34,37.09688164]
[1748802430436,19.79949762,155.39,155.34,37.09688164]
[1748802431226,19.79949762,155.38,155.34,37.09688164]
[1748802431455,19.79949762,155.38,155.3,27.6392]
[1748802431456,19.79949762,155.35,155.3,38.44914648]
[1748802431755,19.79949762,155.34,155.3,19.79949762]
[1748802431935,27.5249,155.38,155.33,19.79949762]
[1748802432138,26.0,155.38,155.34,19.79949762]
[1748802432639,45.79949762,155.38,155.34,19.79949762]
[1748802433361,45.79949762,155.38,155.34,26.23666689]
[1748802433861,45.79949762,155.38,155.34,6.43716927]
[1748802434660,19.79949762,155.35,155.31,18.64964886]
[1748802435361,19.79949762,155.35,155.31,38.44914648]
[1748802435742,19.79949762,155.35,155.31,44.88788191]
[1748802436244,19.79949762,155.33,155.31,6.43873543]
[1748802436843,19.79949762,155.33,155.3,6.43902694]
[1748802437953,19.79949762,155.31,155.29,19.8379947]
[1748802438155,26.0,155.35,155.29,2.53848853]
[1748802438156,19.79949762,155.3,155.29,2.53848853]
[1748802440075,10.86,155.33,155.29,2.53848853]
[1748802440364,45.79949762,155.3,155.29,2.53848853]
[1748802441716,53.88414765,155.3,155.29,2.53848853]
[1748802441972,73.68364527,155.3,155.29,2.53848853]
[1748802442755,19.79949762,155.22,155.17,18.64964886]
[1748802442960,19.79949762,155.2,155.15,6.44537544]
[1748802443471,19.79949762,155.19,155.15,25.0950243]
[1748802444170,19.79949762,155.18,155.15,6.44537544]
[1748802444348,26.0,155.22,155.15,6.44537544]
[1748802444664,19.79949762,155.2,155.15,26.24487306]
[1748802444859,19.79949762,155.19,155.15,6.44537544]
[1748802445165,19.79949762,155.18,155.15,6.44537544]
[1748802446180,26.0,155.22,155.15,6.44537544]
[1748802446365,19.79949762,155.18,155.15,6.44537544]
[1748802446764,19.79949762,155.17,155.14,8.045797]
[1748802447064,26.0,155.17,155.14,0.8811422]
[1748802447268,26.0,155.17,155.14,7.32686428]
[1748802447468,45.79949762,155.17,155.14,7.32686428]
[1748802447779,26.0,155.17,155.14,7.32686428]
[1748802447995,26.0,155.17,155.14,27.1263619]
[1748802448280,26.0,155.17,155.14,7.32686428]
[1748802450074,19.79949762,155.2,155.16,19.79949762]
[1748802450275,10.86,155.21,155.17,19.79949762]
[1748802450462,26.0,155.17,155.14,0.8811422]
[1748802450660,19.79949762,155.15,155.14,0.8811422]
[1748802453866,10.86,155.21,155.14,0.8811422]
[1748802454054,19.79949762,155.17,155.14,0.8811422]
[1748802454363,19.79949762,155.15,155.14,0.8811422]
[1748802455764,19.79949762,155.16,155.14,0.8811422]
[1748802457589,19.79949762,155.15,155.14,0.8811422]
[1748802458085,32.44417302,155.18,155.14,0.8811422]
[1748802458264,45.79949762,155.15,155.14,0.8811422]
[1748802458471,86.33949762,155.15,155.14,0.8811422]
[1748802459486,92.78487306,155.15,155.14,0.8811422]
[1748802459686,66.78487306,155.15,155.14,0.8811422]
[1748802461282,66.78487306,155.15,155.07,6.44870058]
[1748802461283,26.0,155.12,155.07,6.44870058]
[1748802461598,19.79949762,155.11,155.07,26.2481982]
[1748802462174,19.79949762,155.11,155.07,6.44870058]
[1748802462370,19.79949762,155.11,155.07,26.2481982]
[1748802462585,45.79949762,155.14,155.1,19.79949762]
[1748802462992,12.3808,155.19,155.13,19.79949762]
[1748802463175,19.79949762,155.2,155.15,19.79949762]
[1748802463382,26.0,155.19,155.15,19.79949762]
[1748802463981,45.79949762,155.19,155.15,19.79949762]
[1748802464589,45.79949762,155.19,155.16,6.44496004]
[1748802465200,19.79949762,155.19,155.16,6.44496004]
[1748802465399,26.0,155.18,155.16,6.44496004]
[1748802465996,19.79949762,155.2,155.16,26.24445766]
[1748802466487,36.53661694,155.21,155.16,26.24445766]
[1748802466688,19.79949762,155.2,155.16,26.24445766]
[1748802468407,19.79949762,155.17,155.07,1.6575]
[1748802468598,19.79949762,155.13,155.08,19.79949762]
[1748802469082,19.79949762,155.13,155.08,26.24778237]
[1748802470109,19.79949762,155.13,155.08,44.89743123]
[1748802470316,19.79949762,155.12,155.08,6.44828475]
[1748802470488,40.56,155.19,155.07,8.10605441]
[1748802470489,19.79949762,155.11,155.07,8.10605441]
[1748802470686,6.44630553,155.13,155.07,8.10605441]
[1748802470998,19.79949762,155.11,155.07,8.10605441]
[1748802471210,29.92750071,155.11,155.07,8.10605441]
[1748802471891,66.56,155.14,155.07,38.03355512]
[1748802472084,29.92750071,155.11,155.07,8.10605441]
[1748802472286,29.92750071,155.1,155.07,8.10605441]
[1748802475913,38.00858758,155.16,155.08,48.57714957]
[1748802476104,29.92750071,155.12,155.08,48.57714957]
[1748802476492,29.92750071,155.11,155.08,18.64964886]
[1748802476694,29.92750071,155.1,155.07,8.10605441]
[1748802477314,29.92750071,155.11,155.07,8.10605441]
[1748802477500,104.56858758,155.16,155.07,8.10605441]
[1748802477697,29.92750071,155.11,155.07,8.10605441]
[1748802478402,98.12360071,155.16,155.07,8.10605441]
[1748802478403,29.92750071,155.1,155.07,8.10605441]
[1748802478790,26.0,155.01,154.92,16.72151403]
[1748802478991,26.0,154.97,154.92,10.29821403]
[1748802479199,40.8,154.96,154.92,10.29821403]
[1748802479402,29.92750071,154.93,154.85,40.78750071]
[1748802479589,29.92750071,154.89,154.85,10.86]
[1748802479790,29.92750071,154.89,154.86,6.45744543]
[1748802480301,29.92750071,154.94,154.88,29.92750071]
[1748802480497,29.92750071,154.94,154.89,29.92750071]
[1748802480693,29.92750071,154.94,154.9,18.64964886]
[1748802481012,29.92750071,154.94,154.87,26.0]
[1748802481013,29.92750071,154.94,154.91,10.88]
[1748802481214,29.92750071,154.92,154.91,10.88]
[1748802481798,73.35142626,155.01,154.91,10.88]
[1748802481799,66.9,155.01,154.91,10.88]
[1748802482004,6.45200964,155.0,154.91,17.33532971]
[1748802482206,29.92750071,154.94,154.91,17.33532971]
[1748802482608,29.92750071,154.93,154.91,17.33532971]
[1748802484809,26.0,155.01,154.91,17.33532971]
[1748802485010,29.92750071,154.94,154.91,17.33532971]
[1748802485213,29.92750071,154.93,154.91,17.33532971]
[1748802485417,32.45129543,155.01,154.91,17.33532971]
[1748802485612,29.92750071,154.96,154.92,48.57714957]
[1748802486120,29.92750071,154.96,154.93,6.45452785]
[1748802486494,29.92750071,154.95,154.93,6.45452785]
[1748802486928,52.29090335,155.03,154.93,6.45452785]
[1748802487129,29.92750071,154.95,154.93,6.45452785]
[1748802487614,29.92750071,154.94,154.93,25.10417671]
[1748802487820,29.92750071,154.94,154.93,76.86417671]
[1748802488019,29.92750071,154.94,154.93,17.33452785]
[1748802488200,29.92750071,154.98,154.94,18.64964886]
[1748802488408,29.92750071,154.99,154.94,48.57714957]
[1748802488821,31.48110071,155.07,154.97,18.64964886]
[1748802489022,7.8231,155.13,154.99,18.64964886]
[1748802489219,29.92750071,155.01,155.0,10.88]
[1748802489926,29.92750071,155.01,155.0,35.98126176]
[1748802491806,29.92750071,155.01,155.0,17.3316129]
[1748802492212,29.92750071,155.06,155.0,47.25911361]
[1748802492417,29.92750071,155.06,155.01,29.92750071]
[1748802493097,29.92750071,155.06,155.01,36.37862641]
[1748802493727,29.92750071,155.05,155.01,36.37862641]
[1748802494124,29.92750071,155.07,155.03,29.92750071]
[1748802495322,29.92750071,155.07,155.02,29.92750071]
[1748802495534,26.0,155.09,155.02,29.92750071]
[1748802495535,29.92750071,155.06,155.02,29.92750071]
[1748802496422,29.92750071,155.06,155.02,36.37788714]
[1748802497532,32.44807039,155.09,155.02,36.37788714]
[1748802497830,29.92750071,155.06,155.01,6.45119669]
[1748802498032,29.92750071,155.06,155.02,29.92750071]
[1748802498938,29.92750071,155.06,155.02,36.37801124]
[1748802501147,7.3492918,155.15,155.03,29.92750071]
[1748802501337,29.92750071,155.08,155.03,29.92750071]
[1748802502120,29.92750071,155.08,155.04,6.4499484]
[1748802503041,29.92750071,155.08,155.04,36.37744911]
[1748802505348,29.92750071,155.07,155.04,6.4499484]
[1748802506227,6.44749368,155.1,155.04,6.4499484]
[1748802506545,29.92750071,155.08,155.04,6.4499484]
[1748802507326,19.96545355,155.08,155.04,6.4499484]
[1748802507542,19.96545355,155.06,155.01,6.45119669]
[1748802507746,19.96545355,155.06,155.0,10.88]
[1748802507967,19.96545355,155.01,154.97,6.45286184]
[1748802508125,19.96545355,154.99,154.97,6.45286184]
[1748802508458,19.96545355,154.99,154.96,17.45319061]
[1748802509221,29.9797642,154.99,154.96,17.45319061]
[1748802509447,6.45094075,155.02,154.96,17.45319061]
[1748802509448,29.9797642,155.02,154.98,29.9797642]
[1748802509645,26.0,155.05,154.99,29.9797642]
[1748802509850,29.9797642,155.03,154.99,29.9797642]
[1748802510656,29.9797642,155.03,155.0,6.4516129]
[1748802511034,29.9797642,155.02,155.0,6.4516129]
[1748802511458,29.9797642,155.02,154.99,6.45190235]
[1748802512064,29.9797642,155.01,154.99,6.45190235]
[1748802512645,29.9797642,155.01,154.98,6.45244547]
[1748802512861,29.9797642,155.02,154.98,6.45244547]
[1748802514449,29.9797642,155.02,154.98,29.9797642]
[1748802514654,29.9797642,155.01,154.97,6.45286184]
[1748802514948,29.9797642,155.01,154.97,36.43262604]
[1748802515363,29.9797642,154.99,154.96,11.0]
[1748802515534,29.9797642,154.97,154.96,11.0]
[1748802516157,29.9797642,154.98,154.96,11.0]
[1748802516333,29.9797642,154.97,154.96,11.0]
[1748802516735,29.9797642,154.97,154.92,47.43470868]
[1748802516937,29.9797642,154.96,154.92,47.43470868]
[1748802517147,29.9797642,154.95,154.92,17.45494448]
[1748802517642,29.9797642,154.94,154.92,11.0]
[1748802518356,29.9797642,154.93,154.86,6.45744543]
[1748802518555,40.7,154.97,154.86,6.45744543]
[1748802518556,40.7,154.97,154.89,29.9797642]
[1748802518745,40.7,154.97,154.9,29.9797642]
[1748802518746,29.9797642,154.94,154.9,29.9797642]
[1748802519053,29.9797642,154.94,154.89,29.9797642]
[1748802519742,29.9797642,154.94,154.9,6.45577792]
[1748802520056,29.9797642,154.96,154.92,29.9797642]
[1748802520350,29.9797642,154.95,154.91,29.9797642]
[1748802520948,29.9797642,154.93,154.9,6.45577792]
[1748802521454,29.9797642,154.94,154.9,6.45577792]
[1748802521961,40.68,154.97,154.9,36.43554212]
[1748802522259,31.5735642,155.0,154.91,11.0]
[1748802522457,31.5735642,155.0,154.95,29.9797642]
[1748802522762,55.9797642,155.01,154.96,29.9797642]
[1748802523461,29.9797642,155.0,154.96,29.9797642]
[1748802523827,29.9797642,155.02,154.97,29.9797642]
[1748802524234,7.97011265,155.04,154.99,29.9797642]
[1748802524235,1.5201,155.04,154.99,29.9797642]
[1748802524456,31.4998642,155.04,155.0,29.9797642]
[1748802524649,31.4998642,155.04,154.99,29.9797642]
[1748802525041,29.9797642,155.04,154.99,29.9797642]
[1748802525761,29.9797642,155.04,155.0,29.9797642]
[1748802525945,29.9797642,155.04,155.01,6.45119669]
[1748802526854,29.9797642,155.02,154.99,6.45202916]
[1748802527047,29.9797642,155.03,154.99,6.45202916]
[1748802527352,29.9797642,155.03,154.99,36.43179336]
[1748802527746,29.9797642,155.04,154.99,36.43179336]
[1748802528337,26.0,155.06,154.95,6.45369474]
[1748802528338,29.9797642,155.0,154.95,6.45369474]
[1748802528549,29.9797642,154.98,154.95,6.45369474]
[1748802528870,6.4495324,155.05,154.96,29.9797642]
[1748802529166,29.9797642,155.0,154.96,29.9797642]
[1748802529571,29.9797642,155.0,154.95,36.43345894]
[1748802530463,6.4495324,155.05,154.95,36.43345894]
[1748802530647,6.4495324,155.05,154.96,29.9797642]
[1748802530849,29.9797642,155.0,154.95,22.58793159]
[1748802531057,29.9797642,155.0,154.96,29.9797642]
[1748802531246,29.9797642,155.0,154.95,22.58793159]
[1748802531572,29.9797642,155.0,154.96,29.9797642]
[1748802531809,6.4495324,155.05,154.92,10.98]
[1748802531810,29.9797642,154.97,154.92,10.98]
[1748802531973,29.9797642,154.95,154.93,6.45452785]
[1748802532148,1.6208,155.01,154.92,10.98]
[1748802532149,29.9797642,154.94,154.92,10.98]
[1748802532370,29.9797642,154.93,154.92,10.98]
[1748802534754,6.45302498,154.97,154.92,17.43488847]
[1748802535072,36.43235609,154.98,154.92,17.43488847]
[1748802536473,36.43235609,154.98,154.92,10.98]
[1748802536969,29.9797642,154.98,154.92,17.43480665]